[Event "Early-Titled-Tuesday-Blitz-August-29-2023"]
[Site "Chess.com"]
[Date "2023.08.29"]
[Round "9"]
[White "Mesa_1"]
[Black "smilingice"]
[Result "1-0"]
[WhiteElo "2567"]
[BlackElo "2395"]
[TimeControl "180+1"]
[EndTime "9:42:32 PDT"]
[Termination "Mesa_1 won by resignation"]

1. d4 {[%clk 0:03:00.9]} 1... Nf6 {[%clk 0:02:55.9]} 2. c4 {[%clk 0:03:01.3]}
2... g6 {[%clk 0:02:55.2]} 3. Nc3 {[%clk 0:03:01.6]} 3... Bg7 {[%clk 0:02:54.9]}
4. e4 {[%clk 0:03:02.3]} 4... d6 {[%clk 0:02:54.1]} 5. Be2 {[%clk 0:03:02.9]}
5... O-O {[%clk 0:02:53.1]} 6. Be3 {[%clk 0:03:03.6]} 6... Na6 {[%clk
0:02:51.7]} 7. Nf3 {[%clk 0:03:03.9]} 7... c6 {[%clk 0:02:51]} 8. O-O {[%clk
0:03:04.2]} 8... e5 {[%clk 0:02:51]} 9. d5 {[%clk 0:02:43.9]} 9... Ng4 {[%clk
0:02:46.1]} 10. Bg5 {[%clk 0:02:43.8]} 10... f6 {[%clk 0:02:45.8]} 11. Bh4
{[%clk 0:02:32.9]} 11... h5 {[%clk 0:02:44.6]} 12. Ne1 {[%clk 0:02:20.1]} 12...
Nh6 {[%clk 0:02:31.7]} 13. f3 {[%clk 0:02:20.3]} 13... Nf7 {[%clk 0:02:30.4]}
14. a3 {[%clk 0:02:17]} 14... c5 {[%clk 0:02:25.8]} 15. Nd3 {[%clk 0:02:15.8]}
15... Bh6 {[%clk 0:02:25.3]} 16. Bf2 {[%clk 0:02:15.3]} 16... f5 {[%clk
0:02:24.9]} 17. b4 {[%clk 0:02:16]} 17... b6 {[%clk 0:02:23.6]} 18. bxc5 {[%clk
0:02:12.8]} 18... Nxc5 {[%clk 0:02:19.5]} 19. Nxc5 {[%clk 0:02:10.6]} 19... dxc5
{[%clk 0:02:12.1]} 20. a4 {[%clk 0:02:10]} 20... Nd6 {[%clk 0:02:10.9]} 21. a5
{[%clk 0:02:10.3]} 21... Rb8 {[%clk 0:02:00.5]} 22. axb6 {[%clk 0:02:08.1]}
22... axb6 {[%clk 0:01:59.9]} 23. Ra7 {[%clk 0:02:08.6]} 23... Bf4 {[%clk
0:01:51]} 24. Qb3 {[%clk 0:02:05.1]} 24... Qg5 {[%clk 0:01:44.6]} 25. Kh1 {[%clk
0:01:53.4]} 25... Be3 {[%clk 0:01:39.4]} 26. Nb5 {[%clk 0:01:40.2]} 26... Bxf2
{[%clk 0:00:55.1]} 27. Nxd6 {[%clk 0:01:40.2]} 27... Bd4 {[%clk 0:00:54]} 28.
Qa4 {[%clk 0:01:32.2]} 28... h4 {[%clk 0:00:51.3]} 29. Nxc8 {[%clk 0:01:28.6]}
29... h3 {[%clk 0:00:38.3]} 30. gxh3 {[%clk 0:01:17.2]} 30... Rfxc8 {[%clk
0:00:22.8]} 31. Qd7 {[%clk 0:01:13]} 31... Qh6 {[%clk 0:00:22.7]} 32. exf5
{[%clk 0:00:53.9]} 32... Rd8 {[%clk 0:00:21.3]} 33. Qe6+ {[%clk 0:00:49.7]}
33... Kh8 {[%clk 0:00:21.5]} 34. Bd3 {[%clk 0:00:43.5]} 34... Qxh3 {[%clk
0:00:19.7]} 35. Qf6+ {[%clk 0:00:42.8]} 1-0

[Event "Early-Titled-Tuesday-Blitz-August-29-2023"]
[Site "Chess.com"]
[Date "2023.08.29"]
[Round "9"]
[White "joksijoksi"]
[Black "Ariadna_Atreides"]
[Result "1-0"]
[WhiteElo "2465"]
[BlackElo "2226"]
[TimeControl "180+1"]
[EndTime "9:42:34 PDT"]
[Termination "joksijoksi won on time"]

1. d4 {[%clk 0:03:00.9]} 1... Nf6 {[%clk 0:02:55.7]} 2. c4 {[%clk 0:03:01.4]}
2... e6 {[%clk 0:02:56.2]} 3. a3 {[%clk 0:03:00.7]} 3... b6 {[%clk 0:02:54.3]}
4. Nf3 {[%clk 0:03:00]} 4... Bb7 {[%clk 0:02:54.4]} 5. Nc3 {[%clk 0:02:59.8]}
5... Be7 {[%clk 0:02:50.9]} 6. d5 {[%clk 0:02:59.6]} 6... d6 {[%clk 0:02:37]} 7.
e4 {[%clk 0:02:54.3]} 7... a5 {[%clk 0:02:33.6]} 8. h3 {[%clk 0:02:54]} 8... e5
{[%clk 0:02:28.3]} 9. Bd3 {[%clk 0:02:52.1]} 9... Nbd7 {[%clk 0:02:25.5]} 10.
Be3 {[%clk 0:02:52.3]} 10... Nc5 {[%clk 0:02:17.3]} 11. Bc2 {[%clk 0:02:52.1]}
11... O-O {[%clk 0:01:57.2]} 12. O-O {[%clk 0:02:52.3]} 12... a4 {[%clk
0:01:42.6]} 13. Bxc5 {[%clk 0:02:43.5]} 13... bxc5 {[%clk 0:01:41.9]} 14. Bxa4
{[%clk 0:02:40.8]} 14... Ba6 {[%clk 0:01:41.4]} 15. Bb5 {[%clk 0:02:36.9]} 15...
Bxb5 {[%clk 0:01:37.5]} 16. Nxb5 {[%clk 0:02:37.8]} 16... Nxe4 {[%clk
0:01:36.2]} 17. Nd2 {[%clk 0:02:26.4]} 17... Nxd2 {[%clk 0:01:31]} 18. Qxd2
{[%clk 0:02:27.3]} 18... Bg5 {[%clk 0:01:30]} 19. Qe2 {[%clk 0:02:19.2]} 19...
f5 {[%clk 0:01:27.1]} 20. b4 {[%clk 0:02:14.4]} 20... cxb4 {[%clk 0:01:20.7]}
21. axb4 {[%clk 0:02:15.3]} 21... Bf4 {[%clk 0:01:19.4]} 22. Rxa8 {[%clk
0:02:09.3]} 22... Qxa8 {[%clk 0:01:20.3]} 23. Nxc7 {[%clk 0:02:07.5]} 23... Qb7
{[%clk 0:01:17.3]} 24. Ne6 {[%clk 0:02:07.5]} 24... Qxb4 {[%clk 0:00:57]} 25.
Nxf8 {[%clk 0:02:00.9]} 25... Kxf8 {[%clk 0:00:56.4]} 26. g3 {[%clk 0:02:00.9]}
26... Bg5 {[%clk 0:00:55.6]} 27. h4 {[%clk 0:01:58.1]} 27... Bf6 {[%clk
0:00:54.5]} 28. Ra1 {[%clk 0:01:52.5]} 28... g6 {[%clk 0:00:20.1]} 29. h5 {[%clk
0:01:50.1]} 29... e4 {[%clk 0:00:16.7]} 30. Ra8+ {[%clk 0:01:45]} 30... Kg7
{[%clk 0:00:16.2]} 31. hxg6 {[%clk 0:01:37.9]} 31... hxg6 {[%clk 0:00:10.5]} 32.
Qa2 {[%clk 0:01:38.3]} 32... Qe1+ {[%clk 0:00:08.6]} 33. Kg2 {[%clk 0:01:36]}
33... e3 {[%clk 0:00:07.9]} 34. Ra7+ {[%clk 0:01:27.1]} 34... Kh6 {[%clk
0:00:07.3]} 35. fxe3 {[%clk 0:01:13.1]} 35... Qxe3 {[%clk 0:00:06.3]} 36. Ra3
{[%clk 0:01:08.3]} 36... Qe4+ {[%clk 0:00:05.6]} 37. Rf3 {[%clk 0:00:58.7]}
37... Bd4 {[%clk 0:00:04.7]} 38. Qd2+ {[%clk 0:00:57.7]} 38... g5 {[%clk
0:00:04.6]} 39. Qd3 {[%clk 0:00:54.8]} 1-0

[Event "Early-Titled-Tuesday-Blitz-August-29-2023"]
[Site "Chess.com"]
[Date "2023.08.29"]
[Round "9"]
[White "KVAIDAN"]
[Black "C_K_G"]
[Result "1-0"]
[WhiteElo "2364"]
[BlackElo "1998"]
[TimeControl "180+1"]
[EndTime "9:42:36 PDT"]
[Termination "KVAIDAN won by resignation"]

1. f4 {[%clk 0:03:00.9]} 1... d5 {[%clk 0:02:53.1]} 2. Nf3 {[%clk 0:02:57.5]}
2... c5 {[%clk 0:02:52]} 3. e3 {[%clk 0:02:55.6]} 3... a6 {[%clk 0:02:51.5]} 4.
b3 {[%clk 0:02:42.9]} 4... Nc6 {[%clk 0:02:51.1]} 5. Bb2 {[%clk 0:02:42]} 5...
e6 {[%clk 0:02:50.8]} 6. Ne5 {[%clk 0:02:40.2]} 6... Nf6 {[%clk 0:02:49.1]} 7.
Be2 {[%clk 0:02:40.2]} 7... Bd6 {[%clk 0:02:48.3]} 8. O-O {[%clk 0:02:36]} 8...
O-O {[%clk 0:02:46.5]} 9. Rf3 {[%clk 0:02:22.2]} 9... Bxe5 {[%clk 0:02:22.7]}
10. fxe5 {[%clk 0:02:17.1]} 10... Nd7 {[%clk 0:02:21.8]} 11. d4 {[%clk 0:02:17]}
11... f6 {[%clk 0:02:19.2]} 12. exf6 {[%clk 0:02:12]} 12... Rxf6 {[%clk
0:02:16.9]} 13. Rg3 {[%clk 0:02:11.7]} 13... cxd4 {[%clk 0:02:09.6]} 14. e4
{[%clk 0:02:07.3]} 14... dxe4 {[%clk 0:02:02.6]} 15. Bxd4 {[%clk 0:02:04.8]}
15... Nxd4 {[%clk 0:01:59]} 16. Qxd4 {[%clk 0:02:02.6]} 16... Qb6 {[%clk
0:01:52.5]} 17. Qxb6 {[%clk 0:01:53.8]} 17... Nxb6 {[%clk 0:01:52]} 18. Nc3
{[%clk 0:01:54.1]} 18... Rf4 {[%clk 0:01:37.3]} 19. Rg4 {[%clk 0:01:35.9]} 19...
e5 {[%clk 0:01:07.6]} 20. Rxf4 {[%clk 0:01:32.4]} 20... exf4 {[%clk 0:01:08.5]}
21. Nxe4 {[%clk 0:01:32.9]} 21... Bf5 {[%clk 0:01:05.1]} 22. Bf3 {[%clk
0:01:30]} 22... Re8 {[%clk 0:01:02.4]} 23. Nd6 {[%clk 0:01:14.3]} 23... Rf8
{[%clk 0:00:58.1]} 24. c4 {[%clk 0:01:12.2]} 24... Bc8 {[%clk 0:00:34.9]} 25.
Nxc8 {[%clk 0:01:01.3]} 25... Nxc8 {[%clk 0:00:22.9]} 26. Bxb7 {[%clk
0:00:55.8]} 26... Nd6 {[%clk 0:00:21.1]} 27. Bxa6 {[%clk 0:00:55.4]} 27... f3
{[%clk 0:00:20.7]} 28. gxf3 {[%clk 0:00:54.6]} 28... Rxf3 {[%clk 0:00:21.2]} 29.
c5 {[%clk 0:00:53.4]} 29... Nf5 {[%clk 0:00:18.3]} 30. Rc1 {[%clk 0:00:51.5]}
30... Nd4 {[%clk 0:00:10.9]} 31. c6 {[%clk 0:00:51.6]} 31... Nxc6 {[%clk
0:00:08.4]} 32. Rxc6 {[%clk 0:00:51]} 32... h6 {[%clk 0:00:07.3]} 33. Bc4+
{[%clk 0:00:48.5]} 33... Kh7 {[%clk 0:00:06.6]} 34. a4 {[%clk 0:00:48.5]} 34...
Re3 {[%clk 0:00:05.1]} 35. a5 {[%clk 0:00:48.5]} 1-0

[Event "Early-Titled-Tuesday-Blitz-August-29-2023"]
[Site "Chess.com"]
[Date "2023.08.29"]
[Round "9"]
[White "AquivaRubinstein"]
[Black "CSB7"]
[Result "0-1"]
[WhiteElo "2475"]
[BlackElo "2689"]
[TimeControl "180+1"]
[EndTime "9:42:37 PDT"]
[Termination "CSB7 won on time"]

1. d4 {[%clk 0:02:58.6]} 1... Nf6 {[%clk 0:03:00.4]} 2. c4 {[%clk 0:02:58.3]}
2... a6 {[%clk 0:03:01]} 3. Nc3 {[%clk 0:02:57.1]} 3... b5 {[%clk 0:03:01.6]} 4.
cxb5 {[%clk 0:02:51.1]} 4... axb5 {[%clk 0:03:02.5]} 5. Nxb5 {[%clk 0:02:51]}
5... e5 {[%clk 0:03:03.1]} 6. dxe5 {[%clk 0:02:39.7]} 6... Ne4 {[%clk
0:03:03.4]} 7. Nc3 {[%clk 0:02:32.5]} 7... Bb4 {[%clk 0:03:03.7]} 8. Qc2 {[%clk
0:02:32.5]} 8... d5 {[%clk 0:02:34.3]} 9. exd6 {[%clk 0:02:05]} 9... Bf5 {[%clk
0:02:30.3]} 10. Qb3 {[%clk 0:02:02.5]} 10... Nc6 {[%clk 0:01:50.3]} 11. Nf3
{[%clk 0:01:55.1]} 11... Qxd6 {[%clk 0:01:43.2]} 12. e3 {[%clk 0:01:42.1]} 12...
Rb8 {[%clk 0:01:40.6]} 13. Qc4 {[%clk 0:00:42.6]} 13... Nxc3 {[%clk 0:01:14.2]}
14. bxc3 {[%clk 0:00:39.8]} 14... Be6 {[%clk 0:01:12.2]} 15. Qa6 {[%clk
0:00:24.7]} 15... Bxc3+ {[%clk 0:01:10.5]} 16. Bd2 {[%clk 0:00:25.2]} 16... Bxa1
{[%clk 0:01:05.6]} 17. Bb5 {[%clk 0:00:25.4]} 17... O-O {[%clk 0:01:06]} 18. O-O
{[%clk 0:00:22.6]} 18... Rb6 {[%clk 0:01:03.7]} 19. Qa4 {[%clk 0:00:22]} 19...
Bf6 {[%clk 0:00:50.5]} 20. Rd1 {[%clk 0:00:21.8]} 20... Qc5 {[%clk 0:00:45.5]}
21. Bf1 {[%clk 0:00:14.3]} 21... Rfb8 {[%clk 0:00:34.9]} 22. Rc1 {[%clk
0:00:13.8]} 22... Qd6 {[%clk 0:00:34.7]} 23. h3 {[%clk 0:00:07.9]} 23... h6
{[%clk 0:00:29.4]} 24. e4 {[%clk 0:00:07.8]} 24... Nd4 {[%clk 0:00:27]} 25. Nxd4
{[%clk 0:00:04.9]} 25... Bxd4 {[%clk 0:00:27.9]} 26. Qc2 {[%clk 0:00:02.1]}
26... Rb2 {[%clk 0:00:26.9]} 27. Qd1 {[%clk 0:00:02]} 27... Bxf2+ {[%clk
0:00:26.6]} 28. Kxf2 {[%clk 0:00:02.7]} 28... Rxd2+ {[%clk 0:00:27.3]} 0-1

[Event "Early-Titled-Tuesday-Blitz-August-29-2023"]
[Site "Chess.com"]
[Date "2023.08.29"]
[Round "9"]
[White "stratacticos"]
[Black "AlexandraSamaganova"]
[Result "1-0"]
[WhiteElo "1852"]
[BlackElo "2317"]
[TimeControl "180+1"]
[EndTime "9:42:38 PDT"]
[Termination "stratacticos won on time"]

1. e4 {[%clk 0:03:00.3]} 1... c5 {[%clk 0:02:59.7]} 2. d4 {[%clk 0:02:57.9]}
2... cxd4 {[%clk 0:02:58]} 3. Nf3 {[%clk 0:02:57.5]} 3... Nf6 {[%clk 0:02:45]}
4. e5 {[%clk 0:02:57]} 4... Nd5 {[%clk 0:02:43.9]} 5. Bc4 {[%clk 0:02:56.4]}
5... Nb6 {[%clk 0:02:17.1]} 6. Bb3 {[%clk 0:02:55.6]} 6... d6 {[%clk 0:01:44.1]}
7. O-O {[%clk 0:02:48.7]} 7... d5 {[%clk 0:01:13.7]} 8. Nxd4 {[%clk 0:02:42.5]}
8... e6 {[%clk 0:01:02.1]} 9. a4 {[%clk 0:02:38.3]} 9... Nc6 {[%clk 0:00:59.9]}
10. a5 {[%clk 0:02:35.7]} 10... Nd7 {[%clk 0:00:57.3]} 11. Nxc6 {[%clk 0:02:14]}
11... bxc6 {[%clk 0:00:56.6]} 12. Bf4 {[%clk 0:02:13.4]} 12... Be7 {[%clk
0:00:51.9]} 13. c4 {[%clk 0:02:12.2]} 13... O-O {[%clk 0:00:50.5]} 14. Nc3
{[%clk 0:02:10.7]} 14... Bg5 {[%clk 0:00:42.9]} 15. Bg3 {[%clk 0:02:02.6]} 15...
Rb8 {[%clk 0:00:34.3]} 16. f4 {[%clk 0:01:46.9]} 16... Bh6 {[%clk 0:00:32.6]}
17. cxd5 {[%clk 0:01:44.6]} 17... cxd5 {[%clk 0:00:31.9]} 18. Nxd5 {[%clk
0:01:41.7]} 18... exd5 {[%clk 0:00:26.1]} 19. f5 {[%clk 0:01:35.3]} 19... Nc5
{[%clk 0:00:20]} 20. Bxd5 {[%clk 0:01:29.6]} 20... Rxb2 {[%clk 0:00:13.8]} 21.
Qf3 {[%clk 0:00:54]} 21... Rd2 {[%clk 0:00:10.9]} 22. Rad1 {[%clk 0:00:48.8]}
22... Bxf5 {[%clk 0:00:06.2]} 23. Rxd2 {[%clk 0:00:38.4]} 23... Bxd2 {[%clk
0:00:05.5]} 24. Rd1 {[%clk 0:00:37.7]} 24... Bg4 {[%clk 0:00:03]} 25. Qxg4
{[%clk 0:00:28.2]} 25... Qxd5 {[%clk 0:00:03]} 26. Bf4 {[%clk 0:00:28.3]} 1-0

[Event "Early-Titled-Tuesday-Blitz-August-29-2023"]
[Site "Chess.com"]
[Date "2023.08.29"]
[Round "9"]
[White "JiiHart"]
[Black "ElenaPershina"]
[Result "0-1"]
[WhiteElo "2104"]
[BlackElo "2365"]
[TimeControl "180+1"]
[EndTime "9:42:40 PDT"]
[Termination "ElenaPershina won on time"]

1. e4 {[%clk 0:03:00.9]} 1... c5 {[%clk 0:03:00.2]} 2. c3 {[%clk 0:03:00.7]}
2... Nf6 {[%clk 0:02:59.2]} 3. e5 {[%clk 0:03:00.6]} 3... Nd5 {[%clk 0:02:59.7]}
4. d4 {[%clk 0:03:00.3]} 4... cxd4 {[%clk 0:03:00.2]} 5. Nf3 {[%clk 0:03:00.2]}
5... Nc6 {[%clk 0:03:00.5]} 6. cxd4 {[%clk 0:03:00.3]} 6... d6 {[%clk
0:02:59.8]} 7. Nc3 {[%clk 0:03:00.1]} 7... Nxc3 {[%clk 0:02:54.9]} 8. bxc3
{[%clk 0:02:59.8]} 8... dxe5 {[%clk 0:02:53.8]} 9. d5 {[%clk 0:02:59.4]} 9... e4
{[%clk 0:02:41.9]} 10. dxc6 {[%clk 0:02:57.3]} 10... Qxd1+ {[%clk 0:02:39.7]}
11. Kxd1 {[%clk 0:02:56.9]} 11... exf3 {[%clk 0:02:39.5]} 12. Bb5 {[%clk
0:02:54.7]} 12... Kd8 {[%clk 0:02:33]} 13. Bf4 {[%clk 0:02:53.9]} 13... e5
{[%clk 0:02:22.9]} 14. Bxe5 {[%clk 0:02:49.2]} 14... Bc5 {[%clk 0:02:21]} 15.
c7+ {[%clk 0:02:21.4]} 15... Ke7 {[%clk 0:02:19.9]} 16. gxf3 {[%clk 0:02:14.8]}
16... Bxf2 {[%clk 0:02:12.1]} 17. Rf1 {[%clk 0:01:58.6]} 17... Bb6 {[%clk
0:02:08.4]} 18. Re1 {[%clk 0:01:23.8]} 18... Be6 {[%clk 0:02:07.1]} 19. Kc2
{[%clk 0:01:07.8]} 19... Rhc8 {[%clk 0:02:04]} 20. Bxg7 {[%clk 0:00:37.5]} 20...
Rxc7 {[%clk 0:02:01.4]} 21. f4 {[%clk 0:00:33.5]} 21... Rc5 {[%clk 0:01:54.2]}
22. Bd3 {[%clk 0:00:26.2]} 22... f5 {[%clk 0:01:20.2]} 23. Re5 {[%clk
0:00:22.2]} 23... Rxe5 {[%clk 0:01:13.4]} 24. Bxe5 {[%clk 0:00:22.2]} 24... Rg8
{[%clk 0:01:11.3]} 25. c4 {[%clk 0:00:18]} 25... Rg2+ {[%clk 0:01:09.1]} 26. Kb3
{[%clk 0:00:18.3]} 26... Bc5 {[%clk 0:01:04.2]} 27. Re1 {[%clk 0:00:17.6]} 27...
Rxh2 {[%clk 0:00:57]} 28. Bb8 {[%clk 0:00:15.4]} 28... Kf7 {[%clk 0:00:54.6]}
29. Re5 {[%clk 0:00:12.1]} 29... Bd4 {[%clk 0:00:52.3]} 30. Rb5 {[%clk
0:00:10.1]} 30... Rb2+ {[%clk 0:00:41.6]} 31. Ka4 {[%clk 0:00:07.9]} 31... Bd7
{[%clk 0:00:40.6]} 32. a3 {[%clk 0:00:02.1]} 32... a6 {[%clk 0:00:38.1]} 0-1

[Event "Early-Titled-Tuesday-Blitz-August-29-2023"]
[Site "Chess.com"]
[Date "2023.08.29"]
[Round "9"]
[White "only_strong_moves"]
[Black "Khromkin"]
[Result "1/2-1/2"]
[WhiteElo "2519"]
[BlackElo "2350"]
[TimeControl "180+1"]
[EndTime "9:42:41 PDT"]
[Termination "Game drawn by repetition"]

1. d4 {[%clk 0:03:00.9]} 1... d5 {[%clk 0:02:59.7]} 2. Nc3 {[%clk 0:03:01.4]}
2... Nf6 {[%clk 0:02:58.2]} 3. Bf4 {[%clk 0:03:01.9]} 3... a6 {[%clk 0:02:55.9]}
4. e3 {[%clk 0:03:02.2]} 4... c5 {[%clk 0:02:56]} 5. dxc5 {[%clk 0:03:01.4]}
5... Nc6 {[%clk 0:02:56.2]} 6. Nf3 {[%clk 0:03:01]} 6... Bg4 {[%clk 0:02:55]} 7.
Be2 {[%clk 0:03:01.1]} 7... e6 {[%clk 0:02:54]} 8. Na4 {[%clk 0:03:00.3]} 8...
Bxc5 {[%clk 0:02:53.5]} 9. Nxc5 {[%clk 0:03:00.3]} 9... Qa5+ {[%clk 0:02:54.1]}
10. c3 {[%clk 0:03:01]} 10... Qxc5 {[%clk 0:02:54.5]} 11. O-O {[%clk 0:03:01.2]}
11... O-O {[%clk 0:02:53.3]} 12. Ne5 {[%clk 0:02:53.3]} 12... Bxe2 {[%clk
0:02:51.1]} 13. Qxe2 {[%clk 0:02:54.2]} 13... Nxe5 {[%clk 0:02:51.4]} 14. Bxe5
{[%clk 0:02:55.1]} 14... Nd7 {[%clk 0:02:47.8]} 15. Bg3 {[%clk 0:02:55.6]} 15...
Rfd8 {[%clk 0:02:38.1]} 16. e4 {[%clk 0:02:53.4]} 16... Qc4 {[%clk 0:02:28.8]}
17. Qxc4 {[%clk 0:02:42.7]} 17... dxc4 {[%clk 0:02:29]} 18. Rad1 {[%clk
0:02:26]} 18... Nc5 {[%clk 0:02:28.7]} 19. f3 {[%clk 0:02:22.7]} 19... Nd3
{[%clk 0:02:25.7]} 20. Rd2 {[%clk 0:02:15.5]} 20... b5 {[%clk 0:02:20.3]} 21.
Bf2 {[%clk 0:01:55.4]} 21... f6 {[%clk 0:02:14.5]} 22. Be3 {[%clk 0:01:49.5]}
22... Kf7 {[%clk 0:02:11.9]} 23. g4 {[%clk 0:01:48.5]} 23... Rd7 {[%clk
0:02:08.8]} 24. h4 {[%clk 0:01:45.5]} 24... Rad8 {[%clk 0:02:07.2]} 25. a4
{[%clk 0:01:43.3]} 25... Ne5 {[%clk 0:01:54.4]} 26. Rxd7+ {[%clk 0:01:12.5]}
26... Rxd7 {[%clk 0:01:53.7]} 27. axb5 {[%clk 0:01:13.4]} 27... axb5 {[%clk
0:01:52.5]} 28. Bd4 {[%clk 0:01:13.5]} 28... Nd3 {[%clk 0:01:51.2]} 29. Ra1
{[%clk 0:01:08.4]} 29... e5 {[%clk 0:01:46.4]} 30. Be3 {[%clk 0:01:04.2]} 30...
Nxb2 {[%clk 0:01:45.9]} 31. Ra8 {[%clk 0:00:45]} 31... Nd1 {[%clk 0:01:41.4]}
32. Bc5 {[%clk 0:00:43.8]} 32... Nxc3 {[%clk 0:01:08.9]} 33. Rf8+ {[%clk
0:00:43.2]} 33... Kg6 {[%clk 0:01:05.4]} 34. Kf2 {[%clk 0:00:29.8]} 34... Nd1+
{[%clk 0:01:00.5]} 35. Kg3 {[%clk 0:00:29.2]} 35... c3 {[%clk 0:00:58.3]} 36.
Ba3 {[%clk 0:00:27.2]} 36... h6 {[%clk 0:00:54.5]} 37. Rh8 {[%clk 0:00:23.2]}
37... Ra7 {[%clk 0:00:44.6]} 38. h5+ {[%clk 0:00:23.3]} 38... Kf7 {[%clk
0:00:43.8]} 39. Rf8+ {[%clk 0:00:23.7]} 39... Ke6 {[%clk 0:00:43.1]} 40. Re8+
{[%clk 0:00:22.6]} 40... Kf7 {[%clk 0:00:33.2]} 41. Rf8+ {[%clk 0:00:22.9]}
41... Ke6 {[%clk 0:00:33.7]} 42. Re8+ {[%clk 0:00:23.2]} 42... Kf7 {[%clk
0:00:34.4]} 43. Rf8+ {[%clk 0:00:23.8]} 1/2-1/2

[Event "Early-Titled-Tuesday-Blitz-August-29-2023"]
[Site "Chess.com"]
[Date "2023.08.29"]
[Round "9"]
[White "ProfessorChess101"]
[Black "supertfc"]
[Result "1-0"]
[WhiteElo "2426"]
[BlackElo "2330"]
[TimeControl "180+1"]
[EndTime "9:42:42 PDT"]
[Termination "ProfessorChess101 won on time"]

1. Nf3 {[%clk 0:00:55.1]} 1... d5 {[%clk 0:02:56.2]} 2. g3 {[%clk 0:00:54]} 2...
Nf6 {[%clk 0:02:49.3]} 3. Bg2 {[%clk 0:00:48.5]} 3... Bg4 {[%clk 0:02:48.3]} 4.
O-O {[%clk 0:00:48.5]} 4... Nbd7 {[%clk 0:02:43]} 5. c4 {[%clk 0:00:48.6]} 5...
e6 {[%clk 0:02:39]} 6. h3 {[%clk 0:00:45.3]} 6... Bxf3 {[%clk 0:02:36.8]} 7.
Bxf3 {[%clk 0:00:45.3]} 7... Be7 {[%clk 0:02:36.3]} 8. d4 {[%clk 0:00:43.2]}
8... c6 {[%clk 0:02:03.3]} 9. Nc3 {[%clk 0:00:43.2]} 9... O-O {[%clk 0:02:02.9]}
10. b3 {[%clk 0:00:43]} 10... Re8 {[%clk 0:01:34.9]} 11. Bb2 {[%clk 0:00:36.4]}
11... a5 {[%clk 0:00:54.7]} 12. Qd3 {[%clk 0:00:34.9]} 12... Bd6 {[%clk
0:00:48.7]} 13. e4 {[%clk 0:00:32]} 13... e5 {[%clk 0:00:32.1]} 14. cxd5 {[%clk
0:00:28.4]} 14... cxd5 {[%clk 0:00:29.7]} 15. Nxd5 {[%clk 0:00:23.1]} 15... Nxd5
{[%clk 0:00:20.1]} 16. exd5 {[%clk 0:00:24]} 16... exd4 {[%clk 0:00:20.9]} 17.
Bxd4 {[%clk 0:00:24.1]} 17... Ne5 {[%clk 0:00:20.5]} 18. Qc3 {[%clk 0:00:22.7]}
18... Qf6 {[%clk 0:00:14.2]} 19. Bg2 {[%clk 0:00:20.6]} 19... Bb4 {[%clk
0:00:07.7]} 20. Qb2 {[%clk 0:00:19.4]} 20... Qd6 {[%clk 0:00:03.3]} 21. Rad1
{[%clk 0:00:18.2]} 21... Rac8 {[%clk 0:00:01.9]} 22. Qb1 {[%clk 0:00:17.1]}
22... Bc5 {[%clk 0:00:01.9]} 23. Qf5 {[%clk 0:00:16.4]} 23... Bxd4 {[%clk
0:00:01.5]} 24. Rxd4 {[%clk 0:00:17.3]} 24... g6 {[%clk 0:00:01.7]} 25. Qg5
{[%clk 0:00:17.7]} 25... Rc2 {[%clk 0:00:01.4]} 26. Qh6 {[%clk 0:00:17.2]} 1-0

[Event "Early-Titled-Tuesday-Blitz-August-29-2023"]
[Site "Chess.com"]
[Date "2023.08.29"]
[Round "9"]
[White "Aygehovit1992"]
[Black "AndreiITrifan"]
[Result "1-0"]
[WhiteElo "2745"]
[BlackElo "2572"]
[TimeControl "180+1"]
[EndTime "9:42:43 PDT"]
[Termination "Aygehovit1992 won by resignation"]

1. e4 {[%clk 0:02:57.9]} 1... d6 {[%clk 0:02:59.6]} 2. d4 {[%clk 0:02:56.5]}
2... Nf6 {[%clk 0:02:59.7]} 3. Nc3 {[%clk 0:02:57.4]} 3... g6 {[%clk 0:02:59.6]}
4. f4 {[%clk 0:02:57.3]} 4... Bg7 {[%clk 0:02:59.7]} 5. Nf3 {[%clk 0:02:58.2]}
5... O-O {[%clk 0:02:59.5]} 6. e5 {[%clk 0:02:58.1]} 6... dxe5 {[%clk
0:02:59.2]} 7. fxe5 {[%clk 0:02:59]} 7... Nd5 {[%clk 0:02:58.2]} 8. Bc4 {[%clk
0:02:59.6]} 8... c6 {[%clk 0:02:53.2]} 9. O-O {[%clk 0:02:51.4]} 9... Na6 {[%clk
0:02:45.2]} 10. Nxd5 {[%clk 0:02:46.5]} 10... cxd5 {[%clk 0:02:44.7]} 11. Bb3
{[%clk 0:02:37.9]} 11... Nc7 {[%clk 0:02:34.6]} 12. c3 {[%clk 0:02:33.5]} 12...
a5 {[%clk 0:02:31.3]} 13. a4 {[%clk 0:02:28.3]} 13... f6 {[%clk 0:02:20.5]} 14.
Be3 {[%clk 0:02:19.6]} 14... Be6 {[%clk 0:02:18.9]} 15. Qd2 {[%clk 0:02:19.4]}
15... Qd7 {[%clk 0:02:14.3]} 16. Rae1 {[%clk 0:02:18.1]} 16... Rfb8 {[%clk
0:02:03]} 17. Bh6 {[%clk 0:02:17.8]} 17... b5 {[%clk 0:02:00.4]} 18. Bxg7 {[%clk
0:02:18]} 18... Kxg7 {[%clk 0:02:01.3]} 19. Qf4 {[%clk 0:01:58]} 19... f5 {[%clk
0:01:38.5]} 20. Qh4 {[%clk 0:01:37.7]} 20... bxa4 {[%clk 0:01:33.8]} 21. Bxa4
{[%clk 0:01:36.6]} 21... Qd8 {[%clk 0:01:14.1]} 22. Rf2 {[%clk 0:01:33.6]} 22...
Bg8 {[%clk 0:01:05.8]} 23. g4 {[%clk 0:01:26.1]} 23... e6 {[%clk 0:00:38.7]} 24.
Qg3 {[%clk 0:01:20.1]} 24... Qe7 {[%clk 0:00:35.6]} 25. gxf5 {[%clk 0:01:05.9]}
25... exf5 {[%clk 0:00:36.5]} 26. h4 {[%clk 0:00:46.3]} 26... Rb6 {[%clk
0:00:24.4]} 27. h5 {[%clk 0:00:43.6]} 27... Rab8 {[%clk 0:00:20.3]} 28. Nh4
{[%clk 0:00:41]} 28... Kh6 {[%clk 0:00:11.8]} 29. hxg6 {[%clk 0:00:36.6]} 29...
Qg5 {[%clk 0:00:12.3]} 30. Nxf5+ {[%clk 0:00:28.1]} 30... Kxg6 {[%clk
0:00:11.1]} 31. Ne7+ {[%clk 0:00:27.8]} 31... Kh6 {[%clk 0:00:07.3]} 32. Rh2+
{[%clk 0:00:27.5]} 1-0